fUST/lending_fUST_20240807
["ID","MTS","AMOUNT","RATE_DAILY","PERIOD"]
[334378420,1723006242511,-402.49527553,0.00025,2]
[334378421,1723006242521,-154.98358091,0.00025,2]
[334378422,1723006242530,-191.07687744,0.00025,2]
[334378423,1723006242539,-194.56220442,0.00025,2]
[334378424,1723006242551,-1027.58819272,0.00025,2]
[334378425,1723006242565,-45208.88356052,0.00025,2]
[334378426,1723006242574,-151.0,0.00025,7]
[334378427,1723006242584,-295.395828,0.00025,7]
[334378428,1723006242594,-295.395828,0.00025,7]
[334378429,1723006242607,-175.698448,0.00025,7]
[334378430,1723006242617,-618.297099,0.00025,7]
[334378431,1723006242627,-618.297099,0.00025,7]
[334378432,1723006242637,-290.630166,0.00025,7]
[334378433,1723006242647,-290.630166,0.00025,7]
[334378434,1723006242657,-579.466594,0.00025,7]
[334378435,1723006242666,-222.612632,0.00025,7]
[334378436,1723006242677,-222.612632,0.00025,7]
[334378437,1723006242687,-709.637477,0.00025,7]
[334378438,1723006242696,-709.637477,0.00025,7]
[334378439,1723006242706,-358.516393,0.00025,7]
[334378440,1723006242716,-358.516393,0.00025,7]
[334378441,1723006242725,-783.49757,0.00025,7]
[334378442,1723006242734,-783.49757,0.00025,7]
[334378443,1723006242743,-1027.386209,0.00025,7]
[334378444,1723006242753,-1027.386209,0.00025,7]
[334378445,1723006242763,-1138.107699,0.00025,7]
[334378446,1723006242773,-1138.107699,0.00025,7]
[334378447,1723006242784,-952.030441,0.00025,7]
[334378448,1723006242793,-195.56455,0.00025,7]
[334378449,1723006242806,-952.030441,0.00025,7]
[334378450,1723006242815,-195.56455,0.00025,7]
[334378451,1723006242825,-249.995343,0.00025,7]
[334378452,1723006242834,-249.995343,0.00025,7]
[334378453,1723006242843,-150.112233,0.000252,6]
[334378454,1723006242853,-624.83422317,0.00025213,2]
[334378455,1723006242863,-457.0,0.00025373,2]
[334378456,1723006242872,-457.0,0.00025373,2]
[334378457,1723006242882,-199.0,0.00025373,2]
[334378458,1723006242893,-151.0,0.00025448,7]
[334378459,1723006242902,-245.66,0.000255,14]
[334378461,1723006242912,-3053.88,0.000255,14]
[334378463,1723006242922,-295.395828,0.00026,7]
[334378465,1723006242931,-295.395828,0.00026,7]
[334378466,1723006242941,-1581.54451989,0.00026314,2]
[334378467,1723006242950,-457.0,0.00026388,2]
[334378468,1723006242960,-152.25,0.000264,7]
[334378469,1723006242970,-150.112233,0.000264,8]
[334378470,1723006242980,-620.24171116,0.00026474,2]
[334378471,1723006242989,-151.0,0.0002648,7]
[334378472,1723006242998,-295.395828,0.0002648,7]
[334378473,1723006243008,-295.395828,0.0002648,7]
[334378474,1723006243017,-618.297099,0.0002648,7]
[334378475,1723006243027,-618.297099,0.0002648,7]
[334378476,1723006243036,-618.297099,0.0002648,7]
[334378477,1723006243045,-618.297099,0.0002648,7]
[334378478,1723006243060,-290.630166,0.0002648,7]
[334378479,1723006243069,-290.630166,0.0002648,7]
[334378481,1723006243078,-579.466594,0.0002648,7]
[334378483,1723006243088,-222.612632,0.0002648,7]
[334378484,1723006243097,-222.612632,0.0002648,7]
[334378485,1723006243107,-709.637477,0.0002648,7]
[334378486,1723006243115,-709.637477,0.0002648,7]
[334378487,1723006243124,-358.516393,0.0002648,7]
[334378489,1723006243134,-358.516402,0.0002648,7]
[334378490,1723006243144,-783.49757,0.0002648,7]
[334378491,1723006243153,-783.497566,0.0002648,7]
[334378492,1723006243163,-1027.386209,0.0002648,7]
[334378493,1723006243172,-1027.38620312,0.0002648,7]
[334378494,1723006243182,-1138.107699,0.0002648,7]
[334378495,1723006243191,-1138.107696,0.0002648,7]
[334378496,1723006243201,-952.030441,0.0002648,7]
[334378497,1723006243211,-195.56455,0.0002648,7]
[334378498,1723006243220,-952.03045,0.0002648,7]
[334378499,1723006243229,-195.564558,0.0002648,7]
[334378501,1723006243239,-249.995343,0.0002648,7]
[334378503,1723006243248,-249.995338,0.0002648,7]
[334378505,1723006243258,-7458.94652043,0.0002649,2]
[334378507,1723006243267,-457.0,0.00026581,2]
[334378509,1723006243277,-240.0,0.00027,2]
[334378510,1723006243286,-364.873435,0.00027167,2]
[334378512,1723006243295,-2023.14867149,0.00027371,2]
[334378514,1723006243306,-305.60627343,0.0002739,2]
[334378516,1723006243315,-207.68617317,0.00027397,2]
[334378517,1723006243324,-151.0,0.00027397,7]
[334378518,1723006243334,-151.0,0.00027397,7]
[334378519,1723006243343,-151.0,0.00027397,7]
[334378520,1723006243354,-151.0,0.00027397,7]
[334378521,1723006243363,-151.0,0.00027397,7]
[334378522,1723006243373,-151.0,0.00027397,7]
[334378523,1723006243383,-278.454199,0.00027397,7]
[334378524,1723006243393,-529.400044,0.00027397,7]
[334378526,1723006243402,-529.400044,0.00027397,7]
[334378528,1723006243412,-529.400044,0.00027397,7]
[334378530,1723006243421,-529.400044,0.00027397,7]
[334378532,1723006243430,-529.400044,0.00027397,7]
[334378534,1723006243440,-529.400044,0.00027397,7]
[334378536,1723006243450,-529.400044,0.00027397,7]
[334378538,1723006243460,-529.400044,0.00027397,7]
[334378540,1723006243470,-529.400044,0.00027397,7]
[334378542,1723006243481,-529.400044,0.00027397,7]
[334378544,1723006243490,-529.400044,0.00027397,7]
[334378546,1723006243499,-529.400044,0.00027397,7]
[334378548,1723006243509,-529.400044,0.00027397,7]
[334378550,1723006243518,-529.400044,0.00027397,7]
[334378551,1723006243527,-529.400044,0.00027397,7]
[334378552,1723006243537,-529.400044,0.00027397,7]
[334378553,1723006243546,-529.400044,0.00027397,7]
[334378554,1723006243558,-529.400044,0.00027397,7]
[334378555,1723006243568,-529.400044,0.00027397,7]
[334378556,1723006243577,-529.400052,0.00027397,7]
[334378557,1723006243588,-457.0,0.00027402,2]
[334378558,1723006243600,-151.0,0.0002749,7]
[334378559,1723006243609,-290.630166,0.0002749,7]
[334378560,1723006243619,-290.630163,0.0002749,7]
[334378561,1723006243628,-579.466594,0.0002749,7]
[334378562,1723006243639,-222.612632,0.0002749,7]
[334378563,1723006243648,-222.612635,0.0002749,7]
[334378564,1723006243657,-709.637477,0.0002749,7]
[334378565,1723006243667,-709.637473,0.0002749,7]
[334378566,1723006243678,-43759.89301678,0.000275,2]
[334378567,1723006243689,-151.0,0.000275,7]
[334378568,1723006243699,-295.395828,0.000275,7]
[334378569,1723006243708,-295.395824,0.000275,7]
[334378570,1723006243718,-618.297099,0.000275,7]
[334378571,1723006243727,-618.29710575,0.000275,7]
[334378572,1723006243737,-150.112233,0.000276,6]
[334378573,1723006243746,-240.0,0.00027671,2]
[334378574,1723006243756,-1581.54451989,0.00027738,2]
[334378575,1723006243765,-457.0,0.00027789,2]
[334378576,1723006243774,-4817.16,0.00028,96]
[334378577,1723006243783,-245.66,0.00028,14]
[334378578,1723006243793,-3053.88,0.00028,14]
[334378579,1723006243804,-457.0,0.00028417,2]
[334378580,1723006243813,-170.6055475,0.00028493,2]
[334378581,1723006243822,-240.0,0.00028767,2]
[334378582,1723006243832,-197.546666,0.00028771,7]
[334378583,1723006243842,-6799.83831419,0.00028781,2]
[334378584,1723006243852,-20000.0,0.00028793,3]
[334378585,1723006243861,-150.112233,0.000288,6]
[334378586,1723006243871,-457.0,0.00028997,2]
[334378587,1723006243881,-851.08717755,0.00029,2]
[334378588,1723006243891,-1581.54451989,0.00029163,2]
[334378589,1723006243900,-150.0,0.00029284,2]
[334378590,1723006243910,-507.0,0.00029284,2]
[334378591,1723006243919,-1411.0,0.00029284,2]
[334378592,1723006243929,-237.976,0.00029284,2]
[334378593,1723006243939,-977.0,0.000293,2]
[334378594,1723006243949,-153.0,0.00029315,2]
[334378595,1723006243958,-153.0,0.00029315,2]
[334378596,1723006243969,-153.0,0.00029315,2]
[334378597,1723006243978,-153.0,0.00029315,2]
[334378599,1723006243988,-414.1696813,0.00029315,2]
[334378601,1723006243997,-207.1149566,0.00029315,2]
[334378603,1723006244007,-207.1149566,0.00029315,2]
[334378605,1723006244016,-457.0,0.00029432,2]
[334378607,1723006244026,-271.4386735,0.00029863,2]
[334378609,1723006244036,-271.4386735,0.00029863,2]
[334378611,1723006244046,-271.4386735,0.00029863,2]
[334378613,1723006244056,-271.4386735,0.00029863,2]
[334378615,1723006244066,-36077.73994927,0.00029957,21]
[334378617,1723006244075,-435480.26885994,0.00029957,30]
[334378627,1723006244541,-412.80292201,0.00029957,30]
[334378628,1723006244592,-3295.33942545,0.00029957,30]
[334378629,1723006244941,-613.898679,0.0001799,2]
[334378630,1723006244951,-530143.21247046,0.00029957,30]
[334378631,1723006245357,-613.898679,0.00018,2]
[334378632,1723006245366,-613.898679,0.00019969,2]
[334378633,1723006245375,-613.898679,0.00019969,2]
[334378634,1723006245385,-613.898679,0.0001999,2]
[334378635,1723006245395,-613.898679,0.00022,7]
[334378636,1723006245404,-613.898679,0.00022822,7]
[334378637,1723006245413,-613.898679,0.000249,7]
[334378638,1723006245423,-613.898679,0.00025,7]
[334378639,1723006245433,-613.898679,0.0002648,7]
[334378640,1723006245442,-271.4386735,0.00029863,2]
[334378641,1723006245451,-150.3866792,0.00029957,30]
[334378642,1723006245463,-386.929,0.00029957,30]
[334378643,1723006245474,-8010.23999999,0.00029957,30]
[334378644,1723006245501,-613.898679,0.0001799,2]
[334378645,1723006245510,-7502.66815572,0.00029957,30]
[334378646,1723006245522,-5578.29348723,0.00029957,30]
[334378647,1723006245531,-200.0,0.0003,5]
[334378648,1723006245540,-208.0,0.0003,2]
[334378649,1723006245550,-271.23742382,0.0003,2]
[334378650,1723006245565,-271.4386735,0.00030027,2]
[334378651,1723006245574,-271.4386735,0.00030027,2]
[334378652,1723006245584,-271.4386735,0.00030027,2]
[334378653,1723006245596,-271.4386735,0.00030027,2]
[334378654,1723006245607,-271.4386735,0.00030027,2]
[334378655,1723006245616,-271.4386735,0.00030027,2]
[334378656,1723006245625,-168.67400521,0.00030027,2]
[334378677,1723006936627,3700.0,0.00027,120]
[334378680,1723007055081,608.63166733,9.999e-05,2]
[334378682,1723007168483,200.0,0.0001212,2]
[334378683,1723007177613,-183.268844,0.00014247,2]
[334378684,1723007177648,-300.0,0.00014604,2]
[334378685,1723007177684,-228.0,0.00014604,2]
[334378686,1723007177720,-24900.0,0.00014605,2]
[334378687,1723007177757,-184.707894,0.00014882,2]
[334378688,1723007177792,-590.3461257,0.000149,2]
[334378689,1723007177830,-731.55510905,0.00014999,2]
[334378690,1723007177865,-492.59464676,0.00015,2]
[334378691,1723007177900,-1109.20863131,0.00015,2]
[334378693,1723007214315,205.20449904,9.999e-05,2]
[334378694,1723007215943,492.59464676,0.00015,2]
[334378695,1723007219127,250.49137938,0.00015,2]
[334378699,1723007278233,328.469304,0.00014247,2]
[334378700,1723007287341,204.10368515,0.00014999,2]
[334378718,1723007417645,-1794.59755427,0.00015708,2]
[334378719,1723007417681,-2125.17422013,0.00015708,2]
[334378745,1723007432889,-250.0,0.00016117,2]
[334378748,1723007432901,-250.0,0.00016161,2]
[334378751,1723007432912,-250.0,0.00016205,2]
[334378754,1723007432923,-250.0,0.00016249,2]
[334378759,1723007432935,-116.62952035,0.00016293,2]
[334378873,1723007438881,-133.37047965,0.00016293,2]
[334378874,1723007438893,-250.0,0.00016338,2]
[334378875,1723007438905,-250.0,0.00016382,2]
[334378876,1723007438915,-250.0,0.00016426,2]
[334378877,1723007438927,-250.0,0.0001647,2]
[334378878,1723007438939,-250.0,0.00016514,2]
[334378879,1723007438950,-277.26634811,0.00016532,2]
[334378880,1723007438962,-250.0,0.00016559,2]
[334378881,1723007438971,-250.0,0.00016603,2]
[334378882,1723007438982,-250.0,0.00016647,2]
[334378883,1723007438993,-250.0,0.00016691,2]
[334378884,1723007439005,-250.0,0.00016735,2]
[334378888,1723007439240,-250.0,0.0001678,2]
[334378889,1723007439251,-250.0,0.00016824,2]
[334378890,1723007439260,-250.0,0.00016868,2]
[334378891,1723007439269,-250.0,0.00016912,2]
[334378892,1723007439279,-250.0,0.00016956,2]
[334378893,1723007439289,-492.59464676,0.0001784,2]
[334378894,1723007439298,-11749.011386,0.00018989,2]
[334378895,1723007439929,-1543.88409479,0.00018989,2]
[334378902,1723007441033,-5720.0,0.00018989,2]
[334378903,1723007441045,-22914.68473301,0.00018989,2]
[334378904,1723007441059,-414.13369756,0.00018989,2]
[334378905,1723007441078,-500.0,0.00018998,2]
[334378906,1723007441087,-415.1930123,0.00018998,2]
[334378907,1723007441098,-500.0,0.00018998,2]
[334378908,1723007441108,-500.0,0.00018998,2]
[334378909,1723007441118,-500.0,0.00018998,2]
[334378910,1723007441130,-500.0,0.00018998,2]
[334378911,1723007441139,-600.0,0.00018998,2]
[334378912,1723007441150,-500.0,0.00018998,2]
[334378913,1723007441159,-500.0,0.00018998,2]
[334378914,1723007441169,-250.0,0.00019041,2]
[334378915,1723007441179,-3087.63872233,0.00019167,2]
[334378916,1723007441191,-5236.61359711,0.00019177,2]
[334378917,1723007441202,-174.267441,0.00019178,2]
[334378918,1723007441221,-209.25602359,0.00019451,2]
[334378919,1723007441234,-1500.0,0.00019451,2]
[334378920,1723007441244,-174.54270234,0.00019547,2]
[334378921,1723007441254,-154.66746495,0.00019547,2]
[334378922,1723007441264,-4182.56716442,0.0002,2]
[334378923,1723007441275,-156.40122441,0.0002,2]
[334378924,1723007441285,-1444.11606649,0.0002,2]
[334378925,1723007441294,-154.68290005,0.0002,2]
[334378926,1723007441304,-294.18278188,0.0002,2]
[334378927,1723007441313,-328.469304,0.00020707,2]
[334378928,1723007441323,-178.84,0.00021027,3]
[334378929,1723007441333,-1991.65402436,0.00021048,2]
[334378930,1723007441342,-845.54644341,0.00021542,2]
[334378931,1723007441352,-209.22550352,0.00021589,2]
[334378932,1723007441361,-881.79875023,0.0002217,2]
[334378933,1723007441370,-357.68,0.00022397,3]
[334378934,1723007441380,-200.0,0.00024658,15]
[334378935,1723007441390,-380.0,0.00024658,2]
[334378936,1723007441400,-4117.75509987,0.00025,30]
[334378937,1723007441410,-309.19612785,0.00025,2]
[334378938,1723007441419,-150.112233,0.00025,2]
[334378939,1723007441430,-1569.72057676,0.00025123,2]
[334378940,1723007441440,-536.52,0.00025195,3]
[334378941,1723007441450,-524.3350632,0.00025202,2]
[334378942,1723007441459,-241.17280003,0.00025202,2]
[334378943,1723007441469,-310.27445996,0.00025202,2]
[334378944,1723007441478,-500.0,0.00025202,2]
[334378945,1723007441488,-500.0,0.00025202,2]
[334378946,1723007441497,-500.0,0.00025202,2]
[334378947,1723007441507,-500.0,0.00025202,2]
[334378948,1723007441516,-500.0,0.00025202,2]
[334378949,1723007441526,-500.0,0.00025202,2]
[334378950,1723007441536,-500.0,0.00025202,2]
[334378951,1723007441546,-500.0,0.00025202,2]
[334378952,1723007441555,-500.0,0.00025202,2]
[334378953,1723007441565,-500.0,0.00025202,2]
[334378954,1723007441575,-500.0,0.00025202,2]
[334378955,1723007441584,-500.0,0.00025202,2]
[334378956,1723007441594,-56395.897515,0.00025213,3]
[334378957,1723007441606,-835.37038326,0.00025223,2]
[334378958,1723007441616,-150.112233,0.000263,6]
[334378959,1723007441627,-630.76851916,0.00026484,2]
[334378960,1723007441638,-402.49527553,0.00026569,2]
[334378961,1723007441648,-1363.69574407,0.00026599,2]
[334378962,1723007441659,-160.61263926,0.00026599,2]
[334378963,1723007441669,-1569.72057676,0.00026999,2]
[334378964,1723007441678,-3389.33479838,0.00027,2]
[334378965,1723007441687,-189.59399032,0.00027,2]
[334378966,1723007441697,-1524.29424086,0.00027,2]
[334378967,1723007441706,-328.469304,0.00027167,2]
[334378968,1723007441716,-305.60627343,0.00027396,2]
[334378969,1723007441728,-150.112233,0.000276,10]
[334378970,1723007441737,-620.53842596,0.00027808,2]
[334378971,1723007441747,-1411.0,0.00028509,2]
[334378972,1723007441757,-279.8693207,0.0002863,2]
[334378973,1723007441766,-1569.72057676,0.00028875,2]
[334378974,1723007441778,-150.112233,0.000289,5]
[334378975,1723007441788,-271.4386735,0.00029041,2]
[334378976,1723007441799,-271.4386735,0.00029041,2]
[334378977,1723007441809,-374.2033417,0.00029205,2]
[334378978,1723007441822,-270.0375275,0.00029205,2]
[334378979,1723007441832,-150.0,0.00029284,2]
[334378980,1723007441842,-548.9022748,0.00029315,2]
[334378981,1723007441852,-271.4386735,0.00029315,2]
[334378982,1723007441862,-271.4386735,0.00029315,2]
[334378983,1723007441872,-271.4386735,0.00029315,2]
[334378984,1723007441882,-271.4386735,0.00029315,2]
[334378985,1723007441891,-271.4386735,0.00029315,2]
[334378986,1723007441901,-20000.0,0.0002956,3]
[334378987,1723007441910,-4689.31553251,0.00029755,2]
[334378988,1723007441920,-304.3998347,0.00029863,2]
[334378989,1723007441929,-294.4233554,0.00029863,2]
[334378990,1723007441939,-207.1149566,0.00029863,2]
[334378991,1723007441949,-294.4233554,0.00029863,2]
[334378992,1723007441959,-207.1149566,0.00029863,2]
[334378993,1723007441969,-294.4233554,0.00029863,2]
[334378994,1723007441980,-207.1149566,0.00029863,2]
[334378995,1723007441991,-294.4233554,0.00029863,2]
[334378996,1723007442002,-207.1149566,0.00029863,2]
[334378997,1723007442012,-159.88,0.0003,2]
[334378998,1723007442026,-243.0,0.0003,2]
[334378999,1723007442036,-150.0,0.0003,2]
[334379000,1723007442046,-78.24348287,0.00030017,4]
[334379013,1723007443658,-2349.49999998,0.00030017,4]
[334379014,1723007443716,-1877.55337611,0.00030017,4]
[334379015,1723007443772,-22.67562158,0.00030017,4]
[334379037,1723007450582,273.37336231,9.9e-05,2]
[334379038,1723007458243,273.37336231,9.9e-05,2]
[334379039,1723007466355,273.37336231,9.9e-05,2]
[334379040,1723007474405,273.37336231,9.9e-05,2]
[334379041,1723007483238,273.37336231,9.9e-05,2]
[334379042,1723007491221,273.37336231,9.9e-05,2]
[334379043,1723007500548,273.37336231,9.9e-05,2]
[334379044,1723007512712,526.59164475,0.00015,2]
[334379045,1723007517649,1382.92970052,0.00012,2]
[334379046,1723007522052,4140.06892891,9.9e-05,2]
[334379047,1723007554947,304.190946,9.9e-05,2]
[334379048,1723007575884,494.27988772,0.00012,2]
[334379051,1723007620616,155.3548721,0.00012,2]
[334379053,1723007625493,190.4105277,0.00012,2]
[334379054,1723007638059,1669.01055043,0.00012,2]
[334379055,1723007638481,225.27655142,0.00012,2]
[334379061,1723007740561,175.903052,0.00014247,2]
[334379062,1723007741826,231.27068883,0.00014545,2]
[334379063,1723007744736,454.12915107,0.00014545,2]
[334379064,1723007794858,230.01716275,0.00014545,2]
[334379070,1723008220504,287.221024,0.00014247,2]
[334379074,1723008401888,8619.18701048,0.00015,2]
[334379075,1723008425518,10000.0,0.0001401,2]
[334379076,1723008462882,10000.0,0.0001401,2]
[334379077,1723008480612,10000.0,0.0001401,2]
[334379081,1723008518663,1380.0,0.0001401,2]
[334379094,1723008554151,-293.54215785,0.00015,2]
[334379194,1723008638142,-199.05248891,0.00015,2]
[334379196,1723008638153,-1480.9475108,0.00015708,2]
[334379360,1723008641530,-642.91054909,0.00015708,2]
[334379361,1723008641539,-82.64508935,0.00015751,2]
[334379362,1723008641551,-94.78262884,0.00015751,2]
[334379363,1723008641560,-510.0216815,0.00015952,2]
[334379364,1723008641570,-154.72922386,0.0001611,2]
[334379365,1723008641579,-277.26634811,0.000165,2]
[334379366,1723008641588,-250.0,0.00016678,2]
[334379367,1723008641597,-250.0,0.00016724,2]
[334379368,1723008641606,-250.0,0.00016769,2]
[334379369,1723008641615,-250.0,0.00016815,2]
[334379370,1723008641623,-250.0,0.00016861,2]
[334379371,1723008641632,-250.0,0.00016907,2]
[334379372,1723008641641,-250.0,0.00016952,2]
[334379373,1723008641650,-250.0,0.00016998,2]
[334379374,1723008641660,-1718.86822532,0.00017035,2]
[334379375,1723008641671,-386.82522658,0.00017035,2]
[334379376,1723008641681,-250.0,0.00017044,2]
[334379377,1723008641690,-250.0,0.0001709,2]
[334379378,1723008641700,-300.0,0.00017113,2]
[334379379,1723008641712,-400.0,0.00017113,2]
[334379380,1723008641721,-24900.0,0.00017114,2]
[334379381,1723008641730,-250.0,0.00017135,2]
[334379382,1723008641739,-250.0,0.00017181,2]
[334379383,1723008641750,-250.0,0.00017227,2]
[334379384,1723008641759,-250.0,0.00017273,2]
[334379385,1723008641768,-250.0,0.00017318,2]
[334379386,1723008641777,-250.0,0.00017364,2]
[334379387,1723008641786,-250.0,0.0001741,2]
[334379388,1723008641795,-250.0,0.00017456,2]
[334379389,1723008641803,-250.0,0.00017501,2]
[334379390,1723008641813,-250.0,0.00017547,2]
[334379391,1723008641823,-1988.21360927,0.000176,2]
[334379392,1723008641832,-5236.61359711,0.00018557,2]
[334379393,1723008641842,-1763.49757797,0.00018696,2]
[334379394,1723008641850,-942.68890731,0.00018773,2]
[334379395,1723008641859,-420.0,0.00018825,2]
[334379396,1723008641868,-762.99205843,0.00018825,2]
[334379397,1723008641877,-154.79103211,0.00018825,2]
[334379398,1723008641890,-854.50736198,0.00018825,2]
[334379399,1723008641905,-209.25602359,0.00018825,2]
[334379400,1723008641914,-845.54644341,0.00018845,2]
[334379401,1723008641923,-512.71208486,0.00018845,2]
[334379402,1723008642170,-470.88148729,0.00018845,2]
[334379403,1723008642183,-269.95291788,0.00018845,2]
[334379404,1723008642194,-157.18400185,0.00018899,2]
[334379405,1723008642204,-186.69623286,0.00018899,2]
[334379406,1723008642214,-205.20449904,0.00018899,2]
[334379407,1723008642226,-240.82219567,0.00018899,2]
[334379408,1723008642236,-154.96685308,0.00018899,2]
[334379409,1723008642247,-182.70344345,0.00018899,2]
[334379410,1723008642258,-232.74896696,0.00018899,2]
[334379411,1723008642267,-207.05325898,0.00018899,2]
[334379412,1723008642277,-189.84834559,0.00018899,2]
[334379413,1723008642288,-285.08017488,0.00018899,2]
[334379414,1723008642299,-155.16818972,0.00018899,2]
[334379415,1723008642309,-319.75385853,0.00018899,2]
[334379416,1723008642319,-155.45895157,0.0001891,2]
[334379417,1723008642330,-154.93010847,0.0001891,2]
[334379418,1723008642339,-508.61110863,0.0001891,2]
[334379419,1723008642349,-287.79610663,0.0001891,2]
[334379420,1723008642359,-359.53063334,0.0001891,2]
[334379421,1723008642369,-156.41322204,0.0001891,2]
[334379422,1723008642378,-156.74439841,0.0001891,2]
[334379423,1723008642391,-269.69558364,0.0001891,2]
[334379424,1723008642402,-160.17752587,0.0001891,2]
[334379425,1723008642412,-154.72922386,0.0001891,2]
[334379426,1723008642421,-194.83432597,0.0001891,2]
[334379428,1723008642432,-183.12142007,0.0001891,2]
[334379429,1723008642442,-184.2285852,0.0001891,2]
[334379430,1723008642452,-203.18352437,0.00018921,2]
[334379432,1723008642461,-173.573575,0.00019178,2]
[334379435,1723008642472,-174.267441,0.00019178,2]
[334379438,1723008642481,-519.77563875,0.00019749,2]
[334379440,1723008642490,-2105.6934519,0.00019871,2]
[334379442,1723008642500,-269.60684987,0.0002,2]
[334379443,1723008642510,-1444.11606649,0.0002,2]
[334379444,1723008642519,-4182.56716442,0.0002,2]
[334379445,1723008642529,-426.99038561,0.0002,2]
[334379446,1723008642538,-10488.56500567,0.0002,2]
[334379447,1723008642548,-156.40122441,0.0002,2]
[334379449,1723008642559,-299.7834272,0.0002,2]
[334379451,1723008642568,-287.221024,0.00020707,2]
[334379453,1723008642580,-587.0,0.00020707,2]
[334379455,1723008642589,-522.32545193,0.00020721,2]
[334379457,1723008642598,-154.72922386,0.00021591,2]
[334379459,1723008642608,-881.79875023,0.0002217,2]
[334379461,1723008642618,-2105.6934519,0.00022707,2]
[334379463,1723008642627,-823.0,0.00022778,2]
[334379465,1723008642638,-489.76399504,0.00025,2]
[334379466,1723008642648,-174.91278812,0.00025,2]
[334379468,1723008642657,-1152.0,0.00025056,2]
[334379469,1723008642667,-2105.6934519,0.00025543,2]
[334379470,1723008642678,-1363.69574407,0.00026408,2]
[334379471,1723008642687,-160.61263926,0.00026466,2]
[334379472,1723008642698,-367.03454424,0.00026499,2]
[334379473,1723008642708,-168.82096002,0.00026499,2]
[334379474,1723008642719,-217.19212197,0.00026499,2]
[334379475,1723008642730,-500.0,0.00026499,2]
[334379476,1723008642740,-500.0,0.00026499,2]
[334379477,1723008642750,-500.0,0.00026499,2]
[334379479,1723008642759,-528.06133689,0.00026499,2]
[334379480,1723008642768,-500.0,0.00026499,2]
[334379481,1723008642778,-500.0,0.00026499,2]
[334379482,1723008642789,-9681.85258831,0.000265,2]
[334379483,1723008642799,-1466.31,0.00026674,3]
[334379484,1723008642809,-5259.932309,0.00026684,2]
[334379485,1723008642820,-499.65,0.00026768,3]
[334379486,1723008642830,-333.08,0.00026778,3]
[334379487,1723008642840,-166.54,0.00026778,3]
[334379488,1723008642850,-55383.0955178,0.00026837,3]
[334379489,1723008642867,-2232.2164467,0.00026837,3]
[334379490,1723008642878,-1729.31659599,0.00026918,2]
[334379491,1723008642888,-150.112233,0.00027,10]
[334379492,1723008642897,-2153.03852431,0.00027018,2]
[334379518,1723008646767,-328.61668616,0.00018845,2]
[334379519,1723008646777,-3106.89378469,0.00027018,2]
[334379520,1723008646788,-287.221024,0.00027167,2]
[334379521,1723008646799,-5259.932309,0.00027282,2]
[334379522,1723008646809,-305.60627343,0.0002739,2]
[334379523,1723008646819,-151.0,0.00027442,4]
[334379524,1723008646828,-5259.932309,0.00027471,2]
[334379525,1723008646838,-1145.0,0.00027561,2]
[334379526,1723008646847,-5259.932309,0.000279,2]
[334379527,1723008646857,-5259.932309,0.0002806,2]
[334379528,1723008646866,-666.16,0.00028148,3]
[334379529,1723008646875,-333.08,0.00028148,3]
[334379530,1723008646885,-134.19231853,0.00028219,2]
[334379531,1723008646897,-137.24635497,0.00028219,2]
[334379532,1723008646906,-1021.33824966,0.0002828,2]
[334379533,1723008646917,-4238.59405934,0.0002828,2]
[334379534,1723008646927,-1729.31659597,0.00028314,2]
[334379535,1723008646936,-2105.6934519,0.00028378,2]
[334379536,1723008646946,-24235.46361279,0.00028553,21]
[334379537,1723008646955,-57615.3119645,0.00028554,3]